[Event "Titled Tuesday Blitz July 4 Early 2023"]
[White "Weishaeutel, Moritz"]
[Black "Jaivardhan Raj"]
[WhiteFideId "12967300"]
[BlackFideId "25744437"]
[WhiteElo "2571"]
[BlackElo "2092"]
[Result "1-0"]
[Round "7"]
[TimeControl "180+2"]
[Date "2023.07.04"]
[WhiteClock "0:01:42"]
[BlackClock "0:00:28"]
[Board "183"]

1. e4 {[%clk 0:03:00]}  c5 {[%clk 0:02:59]} 2. d4 {[%clk 0:03:01]}  cxd4 {[%clk 0:02:59]} 3. c3 {[%clk 0:03:01]}  d5 {[%clk 0:02:57]} 4. exd5 {[%clk 0:03:01]}  Nf6 {[%clk 0:02:54]} 5. Bb5+ {[%clk 0:03:01]}  Bd7 {[%clk 0:02:54]} 6. Bc4 {[%clk 0:03:01]}  Bg4 {[%clk 0:02:48]} 7. Qxd4 {[%clk 0:03:01]}  Nbd7 {[%clk 0:02:39]} 8. Bg5 {[%clk 0:02:53]}  h6 {[%clk 0:02:31]} 9. Bxf6 {[%clk 0:02:36]}  Nxf6 {[%clk 0:02:28]} 10. Qxg4 {[%clk 0:02:37]}  Nxg4 {[%clk 0:02:26]} 11. Bb5+ {[%clk 0:02:37]}  Qd7 {[%clk 0:02:25]} 12. Bxd7+ {[%clk 0:02:38]}  Kxd7 {[%clk 0:02:26]} 13. Nf3 {[%clk 0:02:39]}  Nf6 {[%clk 0:02:24]} 14. Ne5+ {[%clk 0:02:39]}  Ke8 {[%clk 0:02:24]} 15. c4 {[%clk 0:02:40]}  b5 {[%clk 0:02:19]} 16. Nc3 {[%clk 0:02:23]}  bxc4 {[%clk 0:02:14]} 17. Nxc4 {[%clk 0:02:24]}  Rc8 {[%clk 0:02:06]} 18. Ne3 {[%clk 0:02:24]}  e6 {[%clk 0:02:01]} 19. dxe6 {[%clk 0:02:24]}  fxe6 {[%clk 0:02:00]} 20. Ke2 {[%clk 0:02:24]}  Bb4 {[%clk 0:01:57]} 21. Rac1 {[%clk 0:02:24]}  Kf7 {[%clk 0:01:50]} 22. Nb5 {[%clk 0:02:15]}  Rcd8 {[%clk 0:01:46]} 23. Rc7+ {[%clk 0:02:14]}  Kg6 {[%clk 0:01:44]} 24. a3 {[%clk 0:02:11]}  Rd2+ {[%clk 0:01:40]} 25. Kf3 {[%clk 0:02:11]}  Ne8 {[%clk 0:01:32]} 26. axb4 {[%clk 0:02:05]}  Rf8+ {[%clk 0:01:25]} 27. Kg3 {[%clk 0:02:02]}  Nxc7 {[%clk 0:01:25]} 28. Nxc7 {[%clk 0:02:03]}  Rxb2 {[%clk 0:01:23]} 29. Nxe6 {[%clk 0:02:04]}  Rfxf2 {[%clk 0:01:23]} 30. Nf4+ {[%clk 0:02:04]}  Kh7 {[%clk 0:01:22]} 31. Nd3 {[%clk 0:02:04]}  Rfe2 {[%clk 0:01:13]} 32. Nxb2 {[%clk 0:02:03]}  Rxe3+ {[%clk 0:01:13]} 33. Kf2 {[%clk 0:02:01]}  Rb3 {[%clk 0:01:14]} 34. Nc4 {[%clk 0:01:52]}  Rxb4 {[%clk 0:01:13]} 35. Ne3 {[%clk 0:01:52]}  a5 {[%clk 0:01:11]} 36. Ra1 {[%clk 0:01:52]}  a4 {[%clk 0:01:12]} 37. Nd5 {[%clk 0:01:48]}  Rd4 {[%clk 0:01:01]} 38. Nc3 {[%clk 0:01:46]}  Rd2+ {[%clk 0:00:55]} 39. Kf1 {[%clk 0:01:46]}  Rd7 {[%clk 0:00:50]} 40. Rxa4 {[%clk 0:01:45]}  Rf7+ {[%clk 0:00:51]} 41. Ke1 {[%clk 0:01:44]}  Re7+ {[%clk 0:00:51]} 42. Re4 {[%clk 0:01:44]}  Rc7 {[%clk 0:00:50]} 43. Ne2 {[%clk 0:01:44]}  Ra7 {[%clk 0:00:50]} 44. Kf2 {[%clk 0:01:42]}  Rf7+ {[%clk 0:00:49]} 45. Rf4 {[%clk 0:01:42]}  Rb7 {[%clk 0:00:48]} 46. Kf3 {[%clk 0:01:42]}  Rb3+ {[%clk 0:00:48]} 47. Kf2 {[%clk 0:01:42]}  Rb7 {[%clk 0:00:47]} 48. h4 {[%clk 0:01:43]}  Rb2 {[%clk 0:00:46]} 49. Rf3 {[%clk 0:01:42]}  Rd2 {[%clk 0:00:46]} 50. Re3 {[%clk 0:01:43]}  Rd7 {[%clk 0:00:46]} 51. g4 {[%clk 0:01:43]}  Rf7+ {[%clk 0:00:46]} 52. Rf3 {[%clk 0:01:43]}  Rd7 {[%clk 0:00:46]} 53. Nf4 {[%clk 0:01:44]}  Rd2+ {[%clk 0:00:46]} 54. Kg3 {[%clk 0:01:43]}  Ra2 {[%clk 0:00:46]} 55. g5 {[%clk 0:01:44]}  hxg5 {[%clk 0:00:45]} 56. hxg5 {[%clk 0:01:45]}  Ra5 {[%clk 0:00:44]} 57. Kg4 {[%clk 0:01:43]}  Ra1 {[%clk 0:00:42]} 58. g6+ {[%clk 0:01:41]}  Kg8 {[%clk 0:00:41]} 59. Rd3 {[%clk 0:01:42]}  Ra8 {[%clk 0:00:37]} 60. Ne6 {[%clk 0:01:39]}  Ra4+ {[%clk 0:00:37]} 61. Rd4 {[%clk 0:01:38]}  Rxd4+ {[%clk 0:00:35]} 62. Nxd4 {[%clk 0:01:38]}  Kf8 {[%clk 0:00:35]} 63. Kf5 {[%clk 0:01:39]}  Ke7 {[%clk 0:00:35]} 64. Ne6 {[%clk 0:01:39]}  Ke8 {[%clk 0:00:33]} 65. Nxg7+ {[%clk 0:01:40]}  Kf8 {[%clk 0:00:34]} 66. Nh5 {[%clk 0:01:39]}  Kg8 {[%clk 0:00:35]} 67. Kf6 {[%clk 0:01:39]}  Kh8 {[%clk 0:00:31]} 68. g7+ {[%clk 0:01:40]}  Kg8 {[%clk 0:00:30]} 69. Ke7 {[%clk 0:01:40]}  Kh7 {[%clk 0:00:30]} 70. Kf7 {[%clk 0:01:41]}  Kh6 {[%clk 0:00:28]} 71. g8=Q {[%clk 0:01:42]} 1-0


[Site "https://www.chess.com"]

[Event "Titled Tuesday Blitz July 4 Early 2023"]
[White "Hartikainen, Jarmo"]
[Black "Slavin, Alexey"]
[WhiteFideId "503134"]
[BlackFideId "24104388"]
[WhiteElo "2151"]
[BlackElo "2362"]
[Result "0-1"]
[Round "7"]
[TimeControl "180+2"]
[Date "2023.07.04"]
[WhiteClock "0:00:01"]
[BlackClock "0:00:23"]
[Board "184"]

1. e4 {[%clk 0:03:00]}  Nc6 {[%clk 0:02:59]} 2. Nf3 {[%clk 0:03:00]}  d6 {[%clk 0:03:00]} 3. d4 {[%clk 0:02:55]}  Nf6 {[%clk 0:03:00]} 4. Nc3 {[%clk 0:02:54]}  Bg4 {[%clk 0:03:00]} 5. Bb5 {[%clk 0:02:53]}  a6 {[%clk 0:03:00]} 6. Bxc6+ {[%clk 0:02:53]}  bxc6 {[%clk 0:03:01]} 7. Bg5 {[%clk 0:02:48]}  h6 {[%clk 0:02:59]} 8. Bxf6 {[%clk 0:02:47]}  exf6 {[%clk 0:02:59]} 9. h3 {[%clk 0:02:46]}  Bd7 {[%clk 0:02:56]} 10. e5 {[%clk 0:02:44]}  d5 {[%clk 0:02:54]} 11. Qe2 {[%clk 0:02:41]}  f5 {[%clk 0:02:45]} 12. Nd1 {[%clk 0:02:32]}  Be6 {[%clk 0:02:44]} 13. c3 {[%clk 0:02:32]}  Be7 {[%clk 0:02:44]} 14. O-O {[%clk 0:02:03]}  O-O {[%clk 0:02:44]} 15. b4 {[%clk 0:02:02]}  a5 {[%clk 0:02:43]} 16. b5 {[%clk 0:01:55]}  cxb5 {[%clk 0:02:37]} 17. Qxb5 {[%clk 0:01:55]}  g5 {[%clk 0:02:18]} 18. Rb1 {[%clk 0:01:36]}  g4 {[%clk 0:02:14]} 19. hxg4 {[%clk 0:01:33]}  fxg4 {[%clk 0:02:14]} 20. Nd2 {[%clk 0:01:28]}  a4 {[%clk 0:02:07]} 21. Qd3 {[%clk 0:01:16]}  Bg5 {[%clk 0:01:59]} 22. Ne3 {[%clk 0:01:13]}  Bf4 {[%clk 0:01:49]} 23. g3 {[%clk 0:01:11]}  Bg5 {[%clk 0:01:49]} 24. f4 {[%clk 0:01:12]}  gxf3 {[%clk 0:01:48]} 25. Nxf3 {[%clk 0:01:12]}  Kh8 {[%clk 0:01:43]} 26. Kf2 {[%clk 0:00:52]}  Qe7 {[%clk 0:01:34]} 27. Rh1 {[%clk 0:00:47]}  Rg8 {[%clk 0:01:23]} 28. Nf5 {[%clk 0:00:46]}  Bxf5 {[%clk 0:01:18]} 29. Qxf5 {[%clk 0:00:46]}  Ra6 {[%clk 0:01:05]} 30. Nxg5 {[%clk 0:00:31]}  Qxg5 {[%clk 0:00:59]} 31. Qxg5 {[%clk 0:00:26]}  Rxg5 {[%clk 0:00:59]} 32. Rb7 {[%clk 0:00:19]}  Rc6 {[%clk 0:00:58]} 33. Rc1 {[%clk 0:00:18]}  Rc4 {[%clk 0:00:54]} 34. Rb4 {[%clk 0:00:16]}  Rf5+ {[%clk 0:00:40]} 35. Ke3 {[%clk 0:00:13]}  Rc6 {[%clk 0:00:31]} 36. Rxa4 {[%clk 0:00:12]}  Rg5 {[%clk 0:00:31]} 37. Kf3 {[%clk 0:00:11]}  Rcg6 {[%clk 0:00:31]} 38. Rg1 {[%clk 0:00:10]}  h5 {[%clk 0:00:30]} 39. Ra7 {[%clk 0:00:09]}  Rc6 {[%clk 0:00:29]} 40. Ra3 {[%clk 0:00:08]}  Kg7 {[%clk 0:00:29]} 41. Rg2 {[%clk 0:00:08]}  Kg6 {[%clk 0:00:29]} 42. Ra5 {[%clk 0:00:07]}  Rf5+ {[%clk 0:00:30]} 43. Ke2 {[%clk 0:00:05]}  Rxc3 {[%clk 0:00:30]} 44. Rxd5 {[%clk 0:00:04]}  Rc2+ {[%clk 0:00:30]} 45. Kd3 {[%clk 0:00:04]}  Rxg2 {[%clk 0:00:28]} 46. a4 {[%clk 0:00:05]}  Rxg3+ {[%clk 0:00:27]} 47. Ke4 {[%clk 0:00:04]}  Kg5 {[%clk 0:00:25]} 48. Rc5 {[%clk 0:00:05]}  Ra3 {[%clk 0:00:24]} 49. a5 {[%clk 0:00:05]}  Rf4+ {[%clk 0:00:22]} 50. Kd5 {[%clk 0:00:05]}  Ra4 {[%clk 0:00:23]} 51. Rxc7 {[%clk 0:00:05]}  Rfxd4+ {[%clk 0:00:23]} 52. Kc5 {[%clk 0:00:04]}  Rdc4+ {[%clk 0:00:23]} 53. Kb6 {[%clk 0:00:04]}  Rxc7 {[%clk 0:00:23]} 54. Kxc7 {[%clk 0:00:04]}  Rxa5 {[%clk 0:00:23]} 55. Kd6 {[%clk 0:00:01]}  Kf5 {[%clk 0:00:23]} 0-1


[Site "https://www.chess.com"]

[Event "Titled Tuesday Blitz July 4 Early 2023"]
[White "Seletsky, Grigory"]
[Black "Lisjak, Zlatko"]
[WhiteFideId "14112191"]
[BlackFideId "14502186"]
[WhiteElo "2349"]
[BlackElo "2121"]
[Result "1-0"]
[Round "7"]
[TimeControl "180+2"]
[Date "2023.07.04"]
[WhiteClock "0:01:17"]
[BlackClock "0:00:00"]
[Board "185"]

1. e4 {[%clk 0:02:58]}  c5 {[%clk 0:02:58]} 2. Nf3 {[%clk 0:02:57]}  e6 {[%clk 0:02:58]} 3. c4 {[%clk 0:02:58]}  Nc6 {[%clk 0:02:55]} 4. Nc3 {[%clk 0:02:58]}  d6 {[%clk 0:02:51]} 5. d4 {[%clk 0:02:58]}  cxd4 {[%clk 0:02:50]} 6. Nxd4 {[%clk 0:02:59]}  Nf6 {[%clk 0:02:49]} 7. Be3 {[%clk 0:03:00]}  a6 {[%clk 0:02:46]} 8. Be2 {[%clk 0:02:59]}  Be7 {[%clk 0:02:45]} 9. O-O {[%clk 0:02:59]}  O-O {[%clk 0:02:46]} 10. f3 {[%clk 0:02:58]}  Re8 {[%clk 0:02:42]} 11. Qd2 {[%clk 0:02:58]}  Bf8 {[%clk 0:02:33]} 12. Rfd1 {[%clk 0:02:58]}  Bd7 {[%clk 0:02:27]} 13. Bf1 {[%clk 0:02:56]}  Rc8 {[%clk 0:02:26]} 14. Rac1 {[%clk 0:02:56]}  Ne5 {[%clk 0:02:06]} 15. b3 {[%clk 0:02:55]}  Qc7 {[%clk 0:01:54]} 16. h3 {[%clk 0:02:54]}  Qb8 {[%clk 0:01:51]} 17. f4 {[%clk 0:02:52]}  Ng6 {[%clk 0:01:52]} 18. Nf3 {[%clk 0:02:50]}  Bc6 {[%clk 0:01:44]} 19. Bd3 {[%clk 0:02:50]}  b5 {[%clk 0:01:40]} 20. cxb5 {[%clk 0:02:49]}  axb5 {[%clk 0:01:39]} 21. Nd4 {[%clk 0:02:49]}  Ba8 {[%clk 0:01:18]} 22. Ndxb5 {[%clk 0:02:46]}  Nxe4 {[%clk 0:00:55]} 23. Nxe4 {[%clk 0:02:44]}  Bxe4 {[%clk 0:00:53]} 24. Bxe4 {[%clk 0:02:43]}  Qxb5 {[%clk 0:00:52]} 25. Rxc8 {[%clk 0:02:32]}  Rxc8 {[%clk 0:00:51]} 26. Rc1 {[%clk 0:02:30]}  Rxc1+ {[%clk 0:00:48]} 27. Qxc1 {[%clk 0:02:31]}  Qb4 {[%clk 0:00:39]} 28. Bd3 {[%clk 0:01:53]}  d5 {[%clk 0:00:20]} 29. Qd2 {[%clk 0:01:53]}  Bc5 {[%clk 0:00:18]} 30. Qxb4 {[%clk 0:01:51]}  Bxb4 {[%clk 0:00:16]} 31. g3 {[%clk 0:01:52]}  Kf8 {[%clk 0:00:12]} 32. a4 {[%clk 0:01:52]}  Ke7 {[%clk 0:00:11]} 33. Kg2 {[%clk 0:01:50]}  Kd6 {[%clk 0:00:10]} 34. Kf3 {[%clk 0:01:50]}  f6 {[%clk 0:00:11]} 35. h4 {[%clk 0:01:46]}  e5 {[%clk 0:00:11]} 36. fxe5+ {[%clk 0:01:29]}  fxe5 {[%clk 0:00:09]} 37. Bb6 {[%clk 0:01:24]}  e4+ {[%clk 0:00:08]} 38. Bxe4 {[%clk 0:01:24]}  dxe4+ {[%clk 0:00:07]} 39. Kxe4 {[%clk 0:01:25]}  Be1 {[%clk 0:00:07]} 40. a5 {[%clk 0:01:22]}  Bxg3 {[%clk 0:00:04]} 41. a6 {[%clk 0:01:19]}  Kc6 {[%clk 0:00:04]} 42. Bd4 {[%clk 0:01:18]}  Nxh4 {[%clk 0:00:00]} 43. b4 {[%clk 0:01:17]} 1-0


[Site "https://www.chess.com"]

[Event "Titled Tuesday Blitz July 4 Early 2023"]
[White "Koridze, Lile"]
[Black "BebeBonito2022"]
[WhiteFideId "13612514"]
[WhiteElo "2344"]
[BlackElo "2145"]
[Result "1-0"]
[Round "7"]
[TimeControl "180+2"]
[Date "2023.07.04"]
[WhiteClock "0:00:04"]
[BlackClock "0:00:00"]
[Board "186"]

1. d4 {[%clk 0:03:00]}  Nf6 {[%clk 0:02:59]} 2. c4 {[%clk 0:03:00]}  e6 {[%clk 0:02:59]} 3. Nf3 {[%clk 0:02:59]}  d5 {[%clk 0:02:59]} 4. g3 {[%clk 0:03:00]}  Bb4+ {[%clk 0:02:58]} 5. Bd2 {[%clk 0:03:00]}  Be7 {[%clk 0:02:59]} 6. Bg2 {[%clk 0:03:00]}  O-O {[%clk 0:02:59]} 7. O-O {[%clk 0:03:00]}  Nbd7 {[%clk 0:03:00]} 8. Qc2 {[%clk 0:02:59]}  c6 {[%clk 0:03:00]} 9. b3 {[%clk 0:02:57]}  b6 {[%clk 0:03:00]} 10. Nc3 {[%clk 0:02:57]}  Ba6 {[%clk 0:03:00]} 11. cxd5 {[%clk 0:02:46]}  cxd5 {[%clk 0:03:00]} 12. Rfe1 {[%clk 0:02:46]}  Rc8 {[%clk 0:02:57]} 13. Qb2 {[%clk 0:02:46]}  h6 {[%clk 0:02:41]} 14. Rac1 {[%clk 0:02:44]}  Bd6 {[%clk 0:02:39]} 15. Bf4 {[%clk 0:02:31]}  Bxf4 {[%clk 0:02:32]} 16. gxf4 {[%clk 0:02:31]}  Qe7 {[%clk 0:02:23]} 17. Ne5 {[%clk 0:02:29]}  Nh5 {[%clk 0:02:05]} 18. e3 {[%clk 0:01:28]}  Nhf6 {[%clk 0:01:41]} 19. b4 {[%clk 0:01:05]}  Bc4 {[%clk 0:01:29]} 20. Nxc4 {[%clk 0:00:58]}  Rxc4 {[%clk 0:01:22]} 21. a3 {[%clk 0:00:52]}  a6 {[%clk 0:00:44]} 22. Bf1 {[%clk 0:00:48]}  b5 {[%clk 0:00:45]} 23. Bxc4 {[%clk 0:00:45]}  bxc4 {[%clk 0:00:41]} 24. e4 {[%clk 0:00:45]}  dxe4 {[%clk 0:00:39]} 25. Nxe4 {[%clk 0:00:45]}  Nd5 {[%clk 0:00:39]} 26. Qd2 {[%clk 0:00:40]}  Qh4 {[%clk 0:00:38]} 27. Rxc4 {[%clk 0:00:12]}  Nxf4 {[%clk 0:00:38]} 28. f3 {[%clk 0:00:10]}  Nh3+ {[%clk 0:00:36]} 29. Kh1 {[%clk 0:00:10]}  f5 {[%clk 0:00:34]} 30. Ng3 {[%clk 0:00:07]}  e5 {[%clk 0:00:26]} 31. Rc7 {[%clk 0:00:05]}  f4 {[%clk 0:00:23]} 32. Ne4 {[%clk 0:00:03]}  Nf6 {[%clk 0:00:21]} 33. Rg1 {[%clk 0:00:03]}  g5 {[%clk 0:00:16]} 34. Nxf6+ {[%clk 0:00:02]}  Rxf6 {[%clk 0:00:16]} 35. dxe5 {[%clk 0:00:02]}  Nf2+ {[%clk 0:00:11]} 36. Kg2 {[%clk 0:00:02]}  Qh3+ {[%clk 0:00:10]} 37. Kxf2 {[%clk 0:00:02]}  Qxh2+ {[%clk 0:00:10]} 38. Rg2 {[%clk 0:00:03]}  Qh4+ {[%clk 0:00:10]} 39. Ke2 {[%clk 0:00:03]}  Rf8 {[%clk 0:00:09]} 40. Qd5+ {[%clk 0:00:03]}  Kh8 {[%clk 0:00:00]} 41. Qd7 {[%clk 0:00:04]} 1-0


[Site "https://www.chess.com"]

[Event "Titled Tuesday Blitz July 4 Early 2023"]
[White "laimis61"]
[Black "Aanna12"]
[WhiteElo "2251"]
[BlackElo "2076"]
[Result "0-1"]
[Round "7"]
[TimeControl "180+2"]
[Date "2023.07.04"]
[WhiteClock "0:00:00"]
[BlackClock "0:00:01"]
[Board "189"]

1. e4 {[%clk 0:03:00]}  e5 {[%clk 0:02:57]} 2. Nf3 {[%clk 0:03:00]}  Nc6 {[%clk 0:02:57]} 3. Bb5 {[%clk 0:02:59]}  a6 {[%clk 0:02:57]} 4. Ba4 {[%clk 0:02:59]}  Nf6 {[%clk 0:02:56]} 5. d3 {[%clk 0:02:59]}  b5 {[%clk 0:02:54]} 6. Bb3 {[%clk 0:02:58]}  Be7 {[%clk 0:02:52]} 7. a4 {[%clk 0:02:52]}  Rb8 {[%clk 0:02:43]} 8. axb5 {[%clk 0:02:50]}  axb5 {[%clk 0:02:42]} 9. O-O {[%clk 0:02:49]}  d6 {[%clk 0:02:42]} 10. Nc3 {[%clk 0:02:48]}  O-O {[%clk 0:02:41]} 11. h3 {[%clk 0:02:45]}  h6 {[%clk 0:02:40]} 12. Nd5 {[%clk 0:02:44]}  Be6 {[%clk 0:02:32]} 13. Be3 {[%clk 0:02:43]}  Re8 {[%clk 0:02:28]} 14. Qd2 {[%clk 0:02:42]}  Bf8 {[%clk 0:02:26]} 15. Ra6 {[%clk 0:02:38]}  Bxd5 {[%clk 0:02:19]} 16. exd5 {[%clk 0:02:32]}  Ne7 {[%clk 0:02:19]} 17. Bxh6 {[%clk 0:01:39]}  gxh6 {[%clk 0:02:15]} 18. Nxe5 {[%clk 0:01:38]}  dxe5 {[%clk 0:01:42]} 19. Rxf6 {[%clk 0:01:37]}  Nxd5 {[%clk 0:01:42]} 20. Rf3 {[%clk 0:01:29]}  c6 {[%clk 0:01:32]} 21. Rg3+ {[%clk 0:01:23]}  Kh8 {[%clk 0:01:31]} 22. Qe2 {[%clk 0:01:18]}  Qf6 {[%clk 0:01:20]} 23. Rf3 {[%clk 0:01:00]}  Qg6 {[%clk 0:01:11]} 24. Kh2 {[%clk 0:00:55]}  Bg7 {[%clk 0:01:09]} 25. g3 {[%clk 0:00:52]}  Rbd8 {[%clk 0:01:06]} 26. c4 {[%clk 0:00:48]}  bxc4 {[%clk 0:00:51]} 27. dxc4 {[%clk 0:00:46]}  Nb4 {[%clk 0:00:33]} 28. g4 {[%clk 0:00:44]}  e4 {[%clk 0:00:27]} 29. Rf5 {[%clk 0:00:43]}  Re5 {[%clk 0:00:19]} 30. Rxe5 {[%clk 0:00:30]}  Bxe5+ {[%clk 0:00:18]} 31. f4 {[%clk 0:00:30]}  Bg7 {[%clk 0:00:07]} 32. c5 {[%clk 0:00:23]}  Nd3 {[%clk 0:00:05]} 33. Bc2 {[%clk 0:00:20]}  Qe6 {[%clk 0:00:04]} 34. f5 {[%clk 0:00:14]}  Qe5+ {[%clk 0:00:03]} 35. Kh1 {[%clk 0:00:13]}  Qd5 {[%clk 0:00:03]} 36. Qe3 {[%clk 0:00:12]}  Qd4 {[%clk 0:00:02]} 37. Qxd4 {[%clk 0:00:09]}  Bxd4 {[%clk 0:00:02]} 38. Ra1 {[%clk 0:00:06]}  Nxc5 {[%clk 0:00:01]} 39. Ra5 {[%clk 0:00:04]}  e3 {[%clk 0:00:01]} 40. Bd1 {[%clk 0:00:02]}  Re8 {[%clk 0:00:01]} 41. Be2 {[%clk 0:00:00]}  Kg7 {[%clk 0:00:01]} 0-1


[Site "https://www.chess.com"]

[Event "Titled Tuesday Blitz July 4 Early 2023"]
[White "Blackwhite017"]
[Black "Tuleyeva-Aketayeva, Dana"]
[BlackFideId "13701932"]
[WhiteElo "2055"]
[BlackElo "2241"]
[Result "0-1"]
[Round "7"]
[TimeControl "180+2"]
[Date "2023.07.04"]
[WhiteClock "0:00:03"]
[BlackClock "0:00:06"]
[Board "191"]

1. e4 {[%clk 0:03:00]}  c5 {[%clk 0:03:00]} 2. Nf3 {[%clk 0:02:57]}  Nc6 {[%clk 0:03:00]} 3. d4 {[%clk 0:02:44]}  cxd4 {[%clk 0:03:01]} 4. Nxd4 {[%clk 0:02:36]}  Nf6 {[%clk 0:03:01]} 5. Nc3 {[%clk 0:02:25]}  e5 {[%clk 0:03:00]} 6. Ndb5 {[%clk 0:02:21]}  d6 {[%clk 0:03:00]} 7. Bg5 {[%clk 0:02:21]}  a6 {[%clk 0:03:00]} 8. Na3 {[%clk 0:02:21]}  b5 {[%clk 0:03:00]} 9. Nd5 {[%clk 0:02:22]}  Be7 {[%clk 0:03:00]} 10. Bxf6 {[%clk 0:02:22]}  Bxf6 {[%clk 0:03:01]} 11. c4 {[%clk 0:02:21]}  Nd4 {[%clk 0:03:00]} 12. Nc2 {[%clk 0:02:17]}  O-O {[%clk 0:02:51]} 13. Nxd4 {[%clk 0:02:13]}  exd4 {[%clk 0:02:50]} 14. Nxf6+ {[%clk 0:01:59]}  Qxf6 {[%clk 0:02:50]} 15. cxb5 {[%clk 0:01:50]}  axb5 {[%clk 0:02:51]} 16. Bxb5 {[%clk 0:01:36]}  Qg5 {[%clk 0:02:51]} 17. Be2 {[%clk 0:01:25]}  Qxg2 {[%clk 0:02:41]} 18. Bf3 {[%clk 0:01:25]}  Qg5 {[%clk 0:02:40]} 19. Qd2 {[%clk 0:01:24]}  Qf6 {[%clk 0:02:35]} 20. Bg2 {[%clk 0:01:15]}  Rb8 {[%clk 0:02:27]} 21. O-O {[%clk 0:00:57]}  Ba6 {[%clk 0:02:05]} 22. Rfd1 {[%clk 0:00:54]}  d3 {[%clk 0:02:05]} 23. b3 {[%clk 0:00:52]}  Rfc8 {[%clk 0:02:00]} 24. Rac1 {[%clk 0:00:48]}  Qd4 {[%clk 0:01:40]} 25. Qe3 {[%clk 0:00:34]}  Qb2 {[%clk 0:01:22]} 26. Bf1 {[%clk 0:00:16]}  Rxc1 {[%clk 0:00:58]} 27. Rxc1 {[%clk 0:00:14]}  Qxa2 {[%clk 0:00:54]} 28. Bxd3 {[%clk 0:00:13]}  h6 {[%clk 0:00:39]} 29. Bxa6 {[%clk 0:00:12]}  Qxa6 {[%clk 0:00:40]} 30. Qd4 {[%clk 0:00:11]}  Rxb3 {[%clk 0:00:37]} 31. Rd1 {[%clk 0:00:09]}  Rb6 {[%clk 0:00:20]} 32. e5 {[%clk 0:00:08]}  dxe5 {[%clk 0:00:20]} 33. Qxe5 {[%clk 0:00:09]}  Rg6+ {[%clk 0:00:19]} 34. Kh1 {[%clk 0:00:09]}  Qb7+ {[%clk 0:00:19]} 35. Qd5 {[%clk 0:00:09]}  Qb2 {[%clk 0:00:13]} 36. Qd2 {[%clk 0:00:09]}  Qf6 {[%clk 0:00:13]} 37. Qd8+ {[%clk 0:00:09]}  Kh7 {[%clk 0:00:13]} 38. Qxf6 {[%clk 0:00:09]}  Rxf6 {[%clk 0:00:13]} 39. Kg2 {[%clk 0:00:09]}  g5 {[%clk 0:00:13]} 40. Rd3 {[%clk 0:00:09]}  Kg6 {[%clk 0:00:14]} 41. Ra3 {[%clk 0:00:10]}  Re6 {[%clk 0:00:14]} 42. Ra2 {[%clk 0:00:09]}  f5 {[%clk 0:00:15]} 43. Ra3 {[%clk 0:00:10]}  h5 {[%clk 0:00:15]} 44. Ra2 {[%clk 0:00:10]}  g4 {[%clk 0:00:15]} 45. Ra4 {[%clk 0:00:11]}  Kg5 {[%clk 0:00:16]} 46. h3 {[%clk 0:00:10]}  Re5 {[%clk 0:00:15]} 47. hxg4 {[%clk 0:00:10]}  fxg4 {[%clk 0:00:13]} 48. Rb4 {[%clk 0:00:11]}  Rf5 {[%clk 0:00:13]} 49. Ra4 {[%clk 0:00:11]}  h4 {[%clk 0:00:13]} 50. Rb4 {[%clk 0:00:09]}  h3+ {[%clk 0:00:13]} 51. Kg1 {[%clk 0:00:09]}  Kh4 {[%clk 0:00:12]} 52. Ra4 {[%clk 0:00:05]}  Rd5 {[%clk 0:00:12]} 53. Rb4 {[%clk 0:00:04]}  Rd1+ {[%clk 0:00:11]} 54. Kh2 {[%clk 0:00:04]}  Rf1 {[%clk 0:00:11]} 55. Rf4 {[%clk 0:00:04]}  Kg5 {[%clk 0:00:11]} 56. Rf8 {[%clk 0:00:03]}  Rd1 {[%clk 0:00:10]} 57. Rg8+ {[%clk 0:00:01]}  Kf5 {[%clk 0:00:10]} 58. Rf8+ {[%clk 0:00:01]}  Kg6 {[%clk 0:00:10]} 59. Rg8+ {[%clk 0:00:02]}  Kh5 {[%clk 0:00:10]} 60. Rh8+ {[%clk 0:00:02]}  Kg5 {[%clk 0:00:10]} 61. Rg8+ {[%clk 0:00:03]}  Kf4 {[%clk 0:00:10]} 62. Rf8+ {[%clk 0:00:02]}  Ke4 {[%clk 0:00:10]} 63. Rg8 {[%clk 0:00:02]}  Kf5 {[%clk 0:00:11]} 64. Rf8+ {[%clk 0:00:03]}  Ke6 {[%clk 0:00:11]} 65. Rg8 {[%clk 0:00:03]}  Rd4 {[%clk 0:00:11]} 66. Kg3 {[%clk 0:00:03]}  Kf5 {[%clk 0:00:11]} 67. Rf8+ {[%clk 0:00:03]}  Kg5 {[%clk 0:00:10]} 68. Rg8+ {[%clk 0:00:04]}  Kf6 {[%clk 0:00:11]} 69. Rf8+ {[%clk 0:00:04]}  Kg7 {[%clk 0:00:11]} 70. Ra8 {[%clk 0:00:04]}  Kh6 {[%clk 0:00:06]} 71. Ra6+ {[%clk 0:00:04]}  Kg5 {[%clk 0:00:06]} 72. Ra5+ {[%clk 0:00:05]}  Kf6 {[%clk 0:00:06]} 73. Ra6+ {[%clk 0:00:05]}  Ke5 {[%clk 0:00:07]} 74. Ra5+ {[%clk 0:00:04]}  Kd6 {[%clk 0:00:07]} 75. Ra6+ {[%clk 0:00:04]}  Kc5 {[%clk 0:00:07]} 76. Ra5+ {[%clk 0:00:04]}  Kb4 {[%clk 0:00:07]} 77. Rg5 {[%clk 0:00:04]}  Kc3 {[%clk 0:00:07]} 78. f3 {[%clk 0:00:04]}  gxf3 {[%clk 0:00:06]} 79. Kxf3 {[%clk 0:00:03]}  Rh4 {[%clk 0:00:06]} 80. Rg1 {[%clk 0:00:02]}  Kd2 {[%clk 0:00:05]} 81. Rh1 {[%clk 0:00:02]}  Kd3 {[%clk 0:00:05]} 82. Kg3 {[%clk 0:00:02]}  Rh7 {[%clk 0:00:05]} 83. Rxh3 {[%clk 0:00:02]}  Rf7 {[%clk 0:00:05]} 84. Kh2+ {[%clk 0:00:03]}  Ke2 {[%clk 0:00:05]} 85. Rg3 {[%clk 0:00:04]}  Kf2 {[%clk 0:00:05]} 86. Rg2+ {[%clk 0:00:04]}  Kf1 {[%clk 0:00:06]} 87. Rg1+ {[%clk 0:00:03]}  Kf2 {[%clk 0:00:06]} 88. Rg2+ {[%clk 0:00:04]}  Kf3 {[%clk 0:00:06]} 89. Rg3+ {[%clk 0:00:04]}  Ke2 {[%clk 0:00:06]} 90. Rg2+ {[%clk 0:00:04]}  Ke3 {[%clk 0:00:06]} 91. Rg3+ {[%clk 0:00:05]}  Kf4 {[%clk 0:00:06]} 92. Rg2 {[%clk 0:00:05]}  Kf3 {[%clk 0:00:05]} 93. Rg3+ {[%clk 0:00:04]}  Kf4 {[%clk 0:00:05]} 94. Rg2 {[%clk 0:00:04]}  Rh7+ {[%clk 0:00:06]} 95. Kg1 {[%clk 0:00:04]}  Rb7 {[%clk 0:00:04]} 96. Rf2+ {[%clk 0:00:04]}  Kg3 {[%clk 0:00:04]} 97. Rg2+ {[%clk 0:00:05]}  Kf3 {[%clk 0:00:04]} 98. Rf2+ {[%clk 0:00:04]}  Ke3 {[%clk 0:00:04]} 99. Re2+ {[%clk 0:00:04]}  Kxe2 {[%clk 0:00:04]} 100. Kg2 {[%clk 0:00:04]}  Rg7+ {[%clk 0:00:05]} 101. Kh3 {[%clk 0:00:04]}  Kf3 {[%clk 0:00:05]} 102. Kh2 {[%clk 0:00:05]}  Kf2 {[%clk 0:00:05]} 103. Kh3 {[%clk 0:00:04]}  Kf3 {[%clk 0:00:05]} 104. Kh4 {[%clk 0:00:03]}  Kf4 {[%clk 0:00:06]} 105. Kh5 {[%clk 0:00:04]}  Rg2 {[%clk 0:00:06]} 106. Kh6 {[%clk 0:00:05]}  Kf5 {[%clk 0:00:06]} 107. Kh7 {[%clk 0:00:03]}  Kf6 {[%clk 0:00:06]} 0-1


[Site "https://www.chess.com"]